bitfinex/quotes_SOLUSD_20220102
["timestamp","ask_amount","ask_price","bid_price","bid_amount"]
[1641158291790,8.5219,176.08,175.99,1.56490115]
[1641158291990,8.5219,176.08,175.99,2.06490115]
[1641158292691,8.5219,176.08,175.99,0.5]
[1641158292892,8.5219,176.08,175.98,11.83510115]
[1641158293595,9.0219,176.08,175.98,3.31310115]
[1641158294493,8.5219,176.08,175.98,3.31310115]
[1641158294993,8.5219,176.08,175.98,3.57310115]
[1641158295294,8.5219,176.08,175.98,12.09520115]
[1641158295496,9.0219,176.08,175.98,12.09520115]
[1641158295893,9.0219,176.08,175.99,1.56490115]
[1641158296295,8.5219,176.08,175.99,2.06490115]
[1641158296496,8.5219,176.08,175.99,0.5]
[1641158296497,9.0219,176.08,175.99,0.5]
[1641158296894,9.0219,176.08,175.98,3.31310115]
[1641158297496,9.0219,176.08,175.98,3.57310115]
[1641158297897,9.0219,176.08,176.01,8.5208]
[1641158298097,8.5219,176.08,176.01,9.0208]
[1641158298297,9.0219,176.08,176.01,9.0208]
[1641158299304,8.5219,176.08,176.01,9.0208]
[1641158309855,9.0219,176.08,175.99,1.56490115]
[1641158310054,9.0219,176.08,175.99,2.06490115]
[1641158310259,8.0219,176.08,175.99,2.06490115]
[1641158310458,8.0219,176.08,175.98,1.56490115]
[1641158310959,8.0219,176.08,175.98,2.06490115]
[1641158311160,7.5219,176.08,175.98,2.06490115]
[1641158311763,7.5219,176.08,175.98,9.022]
[1641158312760,7.5219,176.08,175.98,10.58690115]
[1641158315188,9.13657657,176.08,175.98,9.022]
[1641158316488,9.13657657,176.08,175.98,0.5]
[1641158316688,9.63657657,176.08,175.97,1.56490115]
[1641158316887,8.1,176.07,175.97,1.56490115]
[1641158317294,8.5245,176.02,175.97,1.56490115]
[1641158317488,8.5245,176.02,175.95,26.24926779]
[1641158317888,8.5245,176.02,175.95,26.74926779]
[1641158318487,8.5245,176.02,175.95,24.68436664]
[1641158319288,8.5245,176.02,175.95,26.24926779]
[1641158319989,8.5245,176.02,175.95,26.74926779]
[1641158320191,8.5245,176.02,175.95,25.18436664]
[1641158323397,8.5245,176.02,175.95,33.70826664]
[1641158326695,8.5245,176.02,175.95,35.27316779]
[1641158328899,8.5245,176.02,175.95,33.70826664]
[1641158329699,8.5245,176.02,175.95,33.96826664]
[1641158330503,8.5245,176.02,175.95,35.53316779]
[1641158331601,8.5229,176.03,175.95,35.53316779]
[1641158332608,8.5229,176.03,175.96,1.56490115]
[1641158332908,8.5229,176.03,175.97,8.5228]
[1641158333305,8.5229,176.03,175.97,9.0228]
[1641158334807,8.5225,176.04,175.97,9.0228]
[1641158335508,8.5225,176.04,175.97,0.5]
[1641158335907,8.5225,176.04,175.96,10.2976]
[1641158336513,8.5225,176.04,175.96,10.5576]
[1641158336708,8.5225,176.04,175.96,10.2976]
[1641158336909,8.5225,176.04,175.96,10.5576]
[1641158337110,8.5225,176.04,175.96,12.12250115]
[1641158337510,9.7966,176.05,175.96,12.12250115]
[1641158338814,1.2747,176.05,175.96,12.12250115]
[1641158339214,8.5215,176.06,175.96,12.12250115]
[1641158340238,8.5215,176.06,175.96,11.86250115]
[1641158340436,8.5215,176.06,175.97,1.56490115]
[1641158340637,8.5215,176.06,175.97,10.08760115]
[1641158340840,8.5215,176.06,175.97,10.58760115]
[1641158341042,8.5215,176.06,175.97,9.0227]
[1641158343140,8.5215,176.06,175.97,9.2827]
[1641158343340,8.5215,176.06,175.97,10.84760115]
[1641158345744,8.5215,176.06,175.97,9.2827]
[1641158346546,8.5215,176.06,175.97,9.0227]
[1641158346743,8.5215,176.06,175.97,9.2827]
[1641158346946,8.5215,176.06,175.97,9.0227]
[1641158348947,9.0215,176.06,175.97,9.0227]
[1641158350149,9.0215,176.06,175.97,9.2827]
[1641158350553,9.0215,176.06,175.99,8.5216]
[1641158350951,9.0215,176.06,175.99,9.0216]
[1641158351155,9.0215,176.06,175.99,0.5]
[1641158351452,8.5215,176.06,175.98,0.5]
[1641158351852,8.5215,176.06,175.97,2.06490115]
[1641158352154,8.5215,176.06,175.98,8.5221]
[1641158352557,8.5215,176.06,175.98,9.0221]
[1641158354057,8.5215,176.06,175.98,10.3561]
[1641158358365,8.5215,176.06,175.98,11.92100115]
[1641158359686,8.5215,176.06,175.98,10.3561]
[1641158360086,1.61467657,176.09,175.98,10.6161]
[1641158360487,2.11467657,176.09,175.98,10.6161]
[1641158360687,0.5,176.09,175.98,12.18100115]
[1641158360889,2.11467657,176.1,175.98,12.18100115]
[1641158361388,1.61467657,176.09,175.98,12.18100115]
[1641158361590,2.86997657,176.09,175.98,12.18100115]
[1641158361789,8.5205,176.08,175.98,12.18100115]
[1641158363589,8.5205,176.08,175.98,11.92100115]
[1641158364490,8.5205,176.08,175.98,10.6161]
[1641158364691,8.5205,176.08,175.98,9.8561]
[1641158364890,8.5205,176.08,175.98,10.1161]
[1641158365491,8.0205,176.08,175.98,10.1161]
[1641158365690,8.0205,176.08,175.98,11.68100115]
[1641158365891,8.0205,176.08,175.98,11.42100115]
[1641158366093,8.0205,176.08,175.98,11.92100115]
[1641158366392,8.0205,176.08,175.98,10.3561]
[1641158366994,8.0205,176.08,175.98,10.6161]
[1641158367194,8.0205,176.08,175.98,12.18100115]
[1641158368397,11.89017657,176.09,175.98,12.18100115]
[1641158368596,3.36997657,176.09,175.98,20.02100115]
[1641158368797,3.36997657,176.09,175.98,20.28100115]
[1641158369205,1.7553,176.09,175.98,20.28100115]
[1641158369900,8.5206,176.08,175.99,1.56490115]
[1641158370100,8.5206,176.08,176.02,26.72064638]
[1641158370499,8.5206,176.08,176.02,27.22064638]
[1641158371705,8.5206,176.08,176.02,26.72064638]
[1641158371902,8.5206,176.08,176.02,27.22064638]
[1641158373103,8.5206,176.08,176.02,35.74114638]
[1641158373908,8.5206,176.08,176.02,27.22064638]
[1641158375012,8.5206,176.08,176.02,26.72064638]
[1641158375211,8.5206,176.08,176.02,27.22064638]
[1641158377515,8.5206,176.08,176.02,26.72064638]
[1641158377742,8.5206,176.08,176.02,27.22064638]
[1641158380028,8.5206,176.08,175.99,1.56490115]
[1641158380220,8.5206,176.08,176.0,0.5]
[1641158380422,9.0206,176.08,176.0,0.5]
[1641158380824,9.0206,176.08,175.99,2.06490115]
[1641158381023,9.0206,176.08,176.0,31.22453515]
[1641158381225,10.63527657,176.08,176.0,31.22453515]
[1641158381422,10.63527657,176.08,176.0,31.72453515]
[1641158381625,10.63527657,176.08,176.0,31.22453515]
[1641158396271,10.13527657,176.08,176.0,31.72453515]
[1641158396497,10.13527657,176.08,176.0,31.98453515]
[1641158397171,8.5206,176.08,176.0,31.98453515]
[1641158397773,8.5206,176.08,176.0,40.50593515]
[1641158398672,8.5206,176.08,176.0,42.0708363]
[1641158400878,8.5206,176.08,176.0,41.8108363]
[1641158401074,8.5206,176.08,176.0,42.0708363]
[1641158401874,1.3076,176.1,176.0,42.0708363]
[1641158402076,8.5199,176.09,176.0,51.59752998]
[1641158402276,8.5199,176.09,176.01,1.56490115]
[1641158402476,8.5199,176.09,176.03,8.5199]
[1641158402878,8.5199,176.09,176.03,9.0199]
[1641158405579,8.5199,176.09,176.03,0.5]
[1641158405983,8.5199,176.09,176.02,1.7382]
[1641158406182,8.5199,176.09,176.02,1.2382]
[1641158406380,8.5199,176.09,176.02,1.7382]
[1641158409886,8.5199,176.09,176.02,10.2587]
[1641158412411,8.5199,176.09,176.02,10.5187]
[1641158415015,8.5199,176.09,176.02,10.2587]
[1641158415314,8.5199,176.09,176.02,0.5]
[1641158415716,8.5199,176.09,176.01,0.5]
[1641158415914,8.5199,176.09,176.0,34.5488363]
[1641158416516,8.5199,176.09,176.0,34.0488363]
[1641158416716,8.5199,176.09,176.0,32.48393515]
[1641158417715,9.8365,176.09,176.0,41.00533515]
[1641158418018,8.5199,176.09,176.0,41.76533515]
[1641158418615,8.5199,176.09,176.0,41.50533515]
[1641158418816,8.5199,176.09,176.01,1.56490115]
[1641158419225,8.5199,176.09,176.01,2.06490115]
[1641158419726,8.5199,176.09,176.01,9.0207]
[1641158423128,8.5199,176.09,176.01,0.5]
[1641158423530,8.5199,176.09,176.0,33.2894363]
[1641158424529,8.5199,176.09,176.01,2.78130115]
[1641158424730,8.5199,176.09,176.01,11.30220115]
[1641158424930,8.5199,176.09,176.01,11.80220115]
[1641158425129,8.5199,176.09,176.01,10.2373]
[1641158426540,8.5199,176.09,176.01,12.06220115]
[1641158426938,8.5199,176.09,176.01,10.4973]
[1641158427937,8.5199,176.09,176.01,12.06220115]
[1641158430140,8.5199,176.09,176.01,10.4973]
[1641158432263,8.5199,176.09,176.01,12.06220115]
[1641158434464,8.5199,176.09,176.01,11.80220115]
[1641158436166,8.5199,176.09,176.01,10.58580115]
[1641158436368,8.5199,176.09,176.01,1.56490115]
[1641158436769,8.5199,176.09,176.0,1.56490115]
[1641158436972,8.5199,176.09,176.0,2.06490115]
[1641158437571,8.5218,176.05,176.0,2.06490115]
[1641158438373,8.5218,176.05,176.0,0.5]
[1641158438777,8.5218,176.05,175.99,35.91090264]
[1641158438973,8.5218,176.05,176.0,1.56490115]
[1641158439374,8.5218,176.05,176.0,2.06490115]
[1641158439985,8.5218,176.05,176.0,1.56490115]
[1641158440578,9.0218,176.05,176.0,1.56490115]
[1641158440979,9.0218,176.05,175.92,14.14638668]
[1641158440980,8.5218,176.05,175.97,27.54538605]
[1641158441778,8.5218,176.05,175.97,1.56490115]
[1641158441980,8.1,176.04,175.97,1.56490115]
[1641158442178,8.5255,176.01,175.97,1.56490115]
[1641158442380,8.5255,176.01,175.98,1.56490115]
[1641158442579,0.32651127,176.0,175.98,1.56490115]
[1641158443280,0.32651127,176.0,175.96,1.56490115]
[1641158443780,8.5249,175.99,175.96,1.56490115]
[1641158444097,8.0249,175.99,175.96,1.56490115]
[1641158444882,0.32651127,175.98,175.96,1.56490115]
[1641158445080,8.85161127,175.98,175.96,1.56490115]
[1641158445881,8.85161127,175.98,175.95,1.56490115]
[1641158446885,8.85161127,175.98,175.95,2.06490115]
[1641158448783,8.85161127,175.98,175.95,0.5]
[1641158449011,8.85161127,175.98,175.94,2.06490115]
[1641158449686,8.85161127,175.98,175.94,1.56490115]
[1641158452289,9.35161127,175.98,175.92,27.10498665]
[1641158452494,8.85161127,175.98,175.92,27.10498665]
[1641158453298,9.35161127,175.98,175.92,27.10498665]
[1641158453498,8.85161127,175.98,175.92,27.10498665]
[1641158454399,9.35161127,175.98,175.92,27.10498665]
[1641158455600,9.35161127,175.98,175.92,25.5400855]
[1641158456816,9.35161127,175.98,175.92,27.10498665]
[1641158457417,9.35161127,175.98,175.92,1.56490115]
[1641158458420,9.35161127,175.98,175.92,28.65077337]
[1641158458820,8.85161127,175.98,175.92,35.61677337]
[1641158459219,8.85161127,175.98,175.92,37.18167452]
[1641158468228,8.85161127,175.98,175.92,37.68167452]
[1641158468429,8.85161127,175.98,175.92,37.18167452]
[1641158469531,8.85161127,175.98,175.92,37.68167452]
[1641158469732,8.85161127,175.98,175.92,37.18167452]
[1641158470132,8.85161127,175.98,175.92,37.68167452]
[1641158470534,8.85161127,175.98,175.92,37.18167452]
[1641158470731,8.85161127,175.98,175.92,37.68167452]
[1641158471632,8.85161127,175.98,175.92,37.18167452]
[1641158476040,8.85161127,175.98,175.92,35.61677337]
[1641158476241,8.85161127,175.98,175.92,28.65077337]
[1641158477341,8.85161127,175.98,175.92,30.21567452]
[1641158484450,8.85161127,175.98,175.92,1.56490115]
[1641158484648,9.35161127,175.98,175.91,1.56490115]
[1641158485050,8.1,175.97,175.91,1.56490115]
[1641158485250,9.35161127,175.98,175.91,1.56490115]
[1641158485450,8.5289,175.94,175.91,1.56490115]
[1641158486254,9.0289,175.94,175.91,1.56490115]
[1641158487556,8.5289,175.94,175.9,1.56490115]
[1641158488053,8.5289,175.94,175.87,95.56490115]
[1641158488453,9.0289,175.94,175.87,95.56490115]
[1641158489154,9.0289,175.94,175.87,94.0]
[1641158490376,9.0289,175.94,175.86,28.32285869]
[1641158493277,9.0289,175.94,175.87,1.56490115]
[1641158494881,9.0289,175.94,175.86,29.88775984]
[1641158496181,10.2364,175.94,175.86,29.88775984]
[1641158496882,10.2364,175.94,175.86,1.56490115]
[1641158497781,8.1,175.93,175.85,1.56490115]
[1641158497982,8.5313,175.89,175.85,1.56490115]
[1641158498183,8.5313,175.89,175.83,1.56490115]
[1641158500885,9.0313,175.89,175.83,1.56490115]
[1641158501085,9.0313,175.89,175.82,1.56490115]
[1641158501286,8.5313,175.89,175.82,1.56490115]
[1641158501687,9.0313,175.89,175.82,1.56490115]
[1641158501988,9.0313,175.89,175.81,1.239]
[1641158502185,9.0313,175.89,175.81,1.739]
[1641158502587,8.5313,175.89,175.81,1.239]
[1641158502891,10.3596,175.89,175.81,1.239]
[1641158508894,10.3596,175.89,175.81,1.739]
[1641158514202,10.3596,175.89,175.8,1.56490115]
[1641158514402,8.1,175.88,175.8,1.56490115]
[1641158514606,8.5345,175.84,175.78,2.82030115]
[1641158515003,9.0345,175.84,175.78,2.82030115]
[1641158516405,9.0345,175.84,175.78,32.1515743]
[1641158517308,9.0345,175.84,175.78,33.71647545]
[1641158517706,8.5345,175.84,175.78,33.71647545]
[1641158517907,8.5345,175.84,175.78,32.6515743]
[1641158518407,8.5314,175.85,175.78,32.6515743]
[1641158518707,8.5314,175.85,175.78,38.5855743]
[1641158519607,8.5314,175.85,175.8,1.56490115]
[1641158520007,8.5314,175.85,175.8,2.06490115]
[1641158520611,36.5385,175.9,175.8,2.06490115]
[1641158520612,8.5308,175.87,175.8,2.06490115]
[1641158520807,8.5308,175.87,175.8,2.32490115]
[1641158521008,8.5308,175.87,175.8,2.06490115]
[1641158521508,8.5308,175.87,175.81,1.56490115]
[1641158521909,8.5308,175.87,175.81,2.06490115]
[1641158522210,8.5308,175.87,175.82,1.56490115]
[1641158522411,8.5308,175.87,175.82,2.06490115]
[1641158523811,8.5308,175.87,175.82,1.56490115]
[1641158527039,8.5308,175.87,175.82,2.06490115]
[1641158527641,8.5308,175.87,175.82,1.56490115]
[1641158532746,8.5308,175.87,175.82,2.06490115]
[1641158534148,8.5308,175.87,175.82,1.56490115]
[1641158538852,8.5308,175.87,175.83,1.56490115]
[1641158540153,8.5308,175.87,175.82,1.56490115]
[1641158540856,8.5308,175.87,175.81,1.56490115]
[1641158542056,8.5308,175.87,175.82,2.173889]
[1641158543055,16.6308,175.87,175.82,2.173889]
[1641158543556,8.5308,175.87,175.82,2.173889]
[1641158544456,16.6308,175.87,175.82,2.173889]
[1641158545657,8.5308,175.87,175.82,2.173889]
[1641158550367,8.5308,175.87,175.82,8.171889]
[1641158551267,8.5308,175.87,175.82,9.73679015]
[1641158551868,8.5308,175.87,175.82,10.23679015]
[1641158552467,8.5308,175.87,175.83,1.56490115]
[1641158553768,8.5308,175.87,175.83,2.06490115]
[1641158554973,10.96037657,175.94,175.83,8.08390115]
[1641158555173,28.4323,175.93,175.83,16.61340115]
[1641158555372,1.61467657,175.94,175.83,16.61340115]
[1641158555573,1.61467657,175.95,175.84,1.56490115]
[1641158555775,1.61467657,175.95,175.85,26.01618358]
[1641158555971,1.61467657,175.95,175.85,26.77618358]
[1641158556371,8.5276,175.93,175.87,8.5276]
[1641158556672,8.5276,175.93,175.87,16.0936]
[1641158556970,8.5276,175.93,175.87,16.5936]
[1641158557472,8.5276,175.93,175.87,8.066]
[1641158557806,8.5276,175.93,175.86,1.56490115]
[1641158558405,8.5276,175.93,175.85,36.10928473]
[1641158558607,8.5276,175.93,175.85,36.60928473]
[1641158564215,8.5276,175.93,175.85,1.56490115]
[1641158564515,8.5276,175.93,175.76,94.0]
[1641158564516,2.96976931,175.76,175.69,7.90831113]
[1641158564817,8.5381,175.73,175.69,7.90831113]
[1641158565014,8.5381,175.73,175.69,1.68991113]
[1641158565215,8.5381,175.73,175.7,22.43966338]
[1641158565414,8.42651127,175.72,175.61,12.65329781]
[1641158565614,8.42651127,175.72,175.58,2.564]
[1641158566416,8.42651127,175.72,175.59,31.61539722]
[1641158566819,8.5386,175.71,175.59,32.11539722]
[1641158567418,8.5386,175.71,175.6,0.3235027]
[1641158567620,3.46976931,175.76,175.6,0.3235027]
[1641158567621,101.23,175.69,175.6,0.3235027]
[1641158567823,7.07276354,175.74,175.43,1.209]
[1641158567824,101.23,175.64,175.44,2.5214]
[1641158568119,101.23,175.62,175.43,79.8598]
[1641158568323,8.1,175.61,175.43,79.8598]
[1641158568722,37.0864,175.61,175.44,24.34152841]
[1641158568924,15.67276354,175.61,175.44,24.34152841]
[1641158569142,8.5472,175.54,175.44,24.34152841]
[1641158569349,8.1,175.53,175.44,24.84152841]
[1641158571542,8.1,175.53,175.44,25.10152841]
[1641158571744,16.6477,175.53,175.44,24.84152841]
[1641158571944,16.6477,175.53,175.44,25.10152841]
[1641158572144,16.6477,175.53,175.44,24.84152841]
[1641158572544,17.1477,175.53,175.44,24.84152841]
[1641158572745,16.6477,175.53,175.44,24.84152841]
[1641158574546,16.6477,175.53,175.44,25.10152841]
[1641158576647,16.6477,175.53,175.44,24.84152841]
[1641158576847,17.1477,175.53,175.44,24.84152841]
[1641158577547,16.6477,175.53,175.44,24.84152841]
[1641158578754,17.1477,175.53,175.44,24.84152841]
[1641158578952,16.6477,175.53,175.44,24.84152841]
[1641158579954,16.6477,175.53,175.44,25.10152841]
[1641158580754,16.6477,175.53,175.44,24.84152841]
[1641158581559,16.6477,175.53,175.44,25.10152841]
[1641158588664,16.6477,175.53,175.44,24.84152841]
[1641158589069,16.6477,175.53,175.44,25.10152841]
[1641158589667,16.6477,175.53,175.44,24.84152841]
[1641158589865,17.1477,175.53,175.44,24.84152841]
[1641158590264,16.6477,175.53,175.44,24.84152841]
[1641158593872,17.1477,175.53,175.44,24.84152841]
[1641158594275,16.6477,175.53,175.44,24.84152841]
[1641158595400,16.6477,175.53,175.44,25.10152841]
[1641158598803,16.6477,175.53,175.44,24.60152841]
[1641158600204,16.6477,175.53,175.44,25.10152841]
[1641158602307,16.6477,175.53,175.44,31.92252841]
[1641158602908,16.6477,175.53,175.44,31.42252841]
[1641158604009,8.546,175.55,175.44,31.42252841]
[1641158604812,8.546,175.55,175.44,39.96852841]
[1641158605209,8.546,175.55,175.44,31.42252841]
[1641158607710,8.546,175.55,175.44,39.96912841]
[1641158608311,8.546,175.55,175.44,31.42252841]
[1641158610717,8.546,175.55,175.44,39.52252841]
[1641158613621,8.546,175.55,175.44,48.06912841]
[1641158615651,8.546,175.55,175.44,39.96912841]
[1641158617956,8.546,175.55,175.44,31.42252841]
[1641158620359,8.546,175.55,175.44,24.60152841]
[1641158625560,16.646,175.55,175.44,24.60152841]
[1641158625760,8.546,175.55,175.44,24.60152841]
[1641158627362,9.046,175.55,175.44,24.60152841]
[1641158627662,8.546,175.55,175.44,24.60152841]
[1641158635871,8.546,175.55,175.44,33.14832841]
[1641158636570,8.1,175.54,175.44,33.14832841]
[1641158636772,16.6468,175.54,175.44,33.14832841]
[1641158637568,8.5468,175.54,175.44,33.14832841]
[1641158639972,8.1,175.61,175.54,8.5468]
[1641158640335,464.93525458,175.66,175.54,8.5468]
[1641158640336,474.28985458,175.66,175.54,8.5468]
[1641158640472,474.28985458,175.66,175.54,9.3068]
[1641158641472,8.5426,175.62,175.54,17.8494]
[1641158647674,8.5426,175.62,175.54,19.27609368]
[1641158648177,8.5419,175.64,175.54,19.27609368]
[1641158649681,8.5419,175.64,175.54,17.8494]
[1641158649883,9.0419,175.64,175.54,17.8494]
[1641158650083,8.5419,175.64,175.54,17.8494]
[1641158650683,8.5419,175.64,175.54,19.27609368]
[1641158655311,8.5419,175.64,175.54,9.0468]
[1641158655512,16.6419,175.64,175.54,9.0468]
[1641158655711,17.1419,175.64,175.54,9.0468]
[1641158655911,17.1419,175.64,175.54,8.5468]
[1641158657015,17.1419,175.64,175.54,8.8068]
[1641158659216,17.1419,175.64,175.54,8.5468]
[1641158660117,20.14334151,175.64,175.54,8.5468]
[1641158660717,8.5466,175.59,175.54,8.5468]
[1641158660917,8.1,175.58,175.54,8.5468]
[1641158661320,8.6,175.58,175.54,8.5468]
[1641158662818,8.5469,175.56,175.54,8.5468]
[1641158663018,0.32651127,175.55,175.54,8.5468]
[1641158664820,8.87311127,175.55,175.54,8.5468]
[1641158667825,0.32651127,175.55,175.54,8.5468]
[1641158670728,8.5451,175.57,175.54,8.5468]
[1641158670929,8.5451,175.57,175.55,5.73788866]
[1641158671127,8.5451,175.57,175.56,26.3555664]
[1641158671328,8.5445,175.58,175.56,26.3555664]
[1641158671530,1.232,175.63,175.56,26.6155664]
[1641158671732,36.5796,175.64,175.56,26.6155664]
[1641158672133,8.1,175.64,175.56,26.6155664]
[1641158672534,8.1,175.64,175.56,28.54226008]
[1641158672734,5.5172849,175.64,175.56,28.54226008]
[1641158673736,8.5426,175.62,175.56,28.54226008]
[1641158675145,8.5426,175.62,175.56,27.1155664]
[1641158679053,8.5426,175.62,175.56,26.6155664]
[1641158687074,8.5426,175.62,175.56,27.1155664]
[1641158689979,8.5426,175.62,175.56,26.6155664]
[1641158690377,8.5426,175.62,175.56,27.1155664]
[1641158693488,8.5421,175.63,175.56,28.54226008]
[1641158693888,8.5421,175.63,175.56,27.1155664]
[1641158695291,8.5421,175.63,175.56,35.6575664]
[1641158696093,8.5421,175.63,175.56,37.08426008]
[1641158697291,10.01531209,175.65,175.56,37.08426008]
[1641158698295,10.01531209,175.65,175.56,35.6575664]
[1641158698893,1.47381209,175.64,175.56,35.6575664]
[1641158699093,8.5423,175.63,175.56,35.6575664]
[1641158702018,10.01611209,175.63,175.56,35.6575664]
[1641158706819,8.5423,175.63,175.56,35.6575664]
[1641158709124,8.5423,175.63,175.56,27.1155664]
[1641158709623,8.5423,175.63,175.56,26.8555664]
[1641158709823,8.5423,175.63,175.56,26.3555664]
[1641158710924,1.47381209,175.62,175.56,26.3555664]
[1641158711125,8.5438,175.6,175.56,26.3555664]
[1641158716335,1.47381209,175.62,175.56,26.6155664]
[1641158717334,1.47381209,175.62,175.56,27.1155664]
[1641158718134,1.47381209,175.62,175.56,26.3555664]
[1641158718435,1.2434,175.65,175.56,26.3555664]
[1641158718436,1.47381209,175.63,175.56,26.3555664]
[1641158718633,1.47381209,175.63,175.56,26.6155664]
[1641158718833,1.47381209,175.62,175.56,26.6155664]
[1641158719132,8.5437,175.6,175.56,26.6155664]
[1641158721938,1.47381209,175.62,175.56,26.6155664]
[1641158722134,10.01681209,175.62,175.56,26.6155664]
[1641158723038,8.543,175.62,175.56,26.6155664]
[1641158724639,8.543,175.62,175.56,27.1155664]
[1641158725439,8.543,175.62,175.56,26.6155664]
[1641158726840,8.543,175.62,175.56,27.1155664]
[1641158732151,8.543,175.62,175.56,26.8555664]
[1641158737060,10.01681209,175.62,175.56,26.8555664]
[1641158739962,10.01681209,175.62,175.56,27.1155664]
[1641158740564,8.543,175.62,175.56,27.1155664]
[1641158747297,10.01681209,175.62,175.56,27.1155664]
[1641158750200,8.543,175.62,175.56,27.1155664]
[1641158754531,1.47381209,175.63,175.56,27.1155664]
[1641158755731,10.01591209,175.63,175.56,27.1155664]
[1641158758034,10.01591209,175.63,175.56,35.6573664]
[1641158763140,10.01591209,175.63,175.56,35.1573664]
[1641158763340,1.47381209,175.64,175.56,35.1573664]
[1641158763744,1.47381209,175.64,175.57,1.42669368]
[1641158763942,466.40906667,175.66,175.59,8.5401]
[1641158764340,466.40906667,175.66,175.59,9.3001]
[1641158765241,1.47381209,175.66,175.59,9.3001]
[1641158765443,1.47381209,175.66,175.59,10.72679368]
[1641158766948,1.47381209,175.66,175.59,9.3001]
[1641158767845,1.47381209,175.65,175.59,9.3001]
[1641158772753,1.47381209,175.65,175.6,1.42669368]
[1641158772754,0.00381209,175.65,175.6,1.42669368]
[1641158772953,0.00381209,175.65,175.6,16.77269368]
[1641158773151,0.00381209,175.65,175.62,8.5382]
[1641158773351,0.00381209,175.65,175.63,29.03216986]
[1641158773551,383.04051014,175.77,175.63,29.03216986]
[1641158773552,6.39006354,175.72,175.63,30.71886354]
[1641158773752,6.39006354,175.72,175.64,72.2726]
[1641158773953,6.39006354,175.72,175.64,80.94729368]
[1641158774155,6.39006354,175.72,175.64,81.20729368]
[1641158774551,8.5367,175.75,175.64,81.20729368]
[1641158774858,8.5367,175.75,175.67,8.5366]
[1641158775052,8.5367,175.75,175.67,8.7966]
[1641158775252,8.5367,175.75,175.67,9.2966]
[1641158783667,8.5367,175.75,175.66,8.5371]
[1641158783867,9.0367,175.75,175.63,23.2942812]
[1641158784569,9.0367,175.75,175.64,1.2442]
[1641158784769,8.5367,175.75,175.64,1.2442]
[1641158785271,8.5367,175.75,175.64,2.0042]
[1641158785871,8.5367,175.75,175.64,10.5423]
[1641158788991,8.5367,175.75,175.64,11.96899368]
[1641158791094,8.5367,175.75,175.64,10.5423]
[1641158793197,11.53814151,175.75,175.64,10.5423]
[1641158797611,8.5367,175.75,175.64,10.5423]
[1641158798914,11.53814151,175.75,175.64,10.5423]
[1641158800617,8.5367,175.75,175.64,10.5423]
[1641158800816,8.5367,175.75,175.64,11.96899368]
[1641158801417,8.5367,175.75,175.64,10.5423]
[1641158803529,8.5367,175.75,175.65,9.96419368]
[1641158803930,8.5367,175.75,175.65,10.72419368]
[1641158808953,8.5367,175.75,175.65,18.38319368]
[1641158810449,7.855279,175.75,175.65,18.38319368]
[1641158810652,7.855279,175.75,175.65,16.9565]
[1641158811453,7.855279,175.75,175.65,8.419]
[1641158811652,7.855279,175.75,175.65,0.76]
[1641158811855,7.855279,175.75,175.65,0.26]
[1641158812053,7.855279,175.75,175.64,0.5]
[1641158812254,7.855279,175.75,175.63,99.8016812]
[1641158812454,9.39690958,175.74,175.63,99.8016812]
[1641158812655,9.39690958,175.74,175.63,108.3402812]
[1641158813055,31.46384151,175.75,175.63,108.3402812]
[1641158813256,31.96384151,175.75,175.63,108.3402812]
[1641158813858,8.5388,175.7,175.64,1.3041]
[1641158814056,8.5388,175.7,175.64,1.5641]
[1641158814256,8.5388,175.7,175.64,2.0641]
[1641158818365,8.5383,175.71,175.64,2.0641]
[1641158818568,1.3291,175.73,175.64,12.02879368]
[1641158819471,8.538,175.72,175.64,12.02879368]
[1641158829502,8.538,175.72,175.64,10.6021]
[1641158831606,8.538,175.72,175.64,1.8041]
[1641158831808,8.538,175.72,175.63,99.0416812]
[1641158832008,8.538,175.72,175.63,23.7942812]
[1641158832208,8.538,175.72,175.63,23.2942812]
[1641158832408,8.538,175.72,175.63,23.7942812]
[1641158838017,8.538,175.72,175.63,24.0542812]
[1641158838216,8.5372,175.73,175.64,1.42669368]